Workbook

Sheet 18.08.2014
A1: Название | B1: Колич | C1: Цена | D1: Сумма | J1: Расход | L1: Касса | M1: Курс USD
A2: 6LYAPA | B2: 2 | C2: 350 | D2: =B2*C2 -> 700 | F2: 200 | G2: =D2-F2*B2 -> 300 | H2: =SUM(D2:D153) -> 7800 | I2: =SUM(K2:K9) -> 500 | J2: EDA | K2: 140 | L2: 2580 | M2: 52
A3: 3222 | B3: 1 | C3: 300 | D3: 300 | F3: 165 | G3: 135 | H3: =H2-H4 -> 4795 | I3: =H2/M2 -> 150 | J3: 6TRAF | K3: 200
A4: 120 | B4: 1 | C4: 300 | D4: 300 | F4: 170 | G4: 130 | H4: =SUM(G2:G154) -> 3005 | I4: =H4/M2 -> 57.78846154 | J4: RAS4ES | K4: 160
A5: Y8302 | B5: 1 | C5: 700 | D5: 700 | F5: 270 | G5: 430
A6: Y8302 | B6: 1 | C6: 350 | D6: 350 | F6: 270 | G6: 80
A7: Y8339 | B7: 5 | C7: 350 | D7: 1750 | F7: 270 | G7: 400
A8: Y8307 | B8: 4 | C8: 350 | D8: 1400 | F8: 270 | G8: 320
A9: T2301B | B9: 1 | C9: 800 | D9: 800 | F9: 370 | G9: 430
A10: T702 | B10: 1 | C10: 700 | D10: 700 | F10: 320 | G10: 380
A11: BABA | B11: 1 | C11: 100 | D11: 100 | F11: 50 | G11: 50
A12: GALSTUK | B12: 1 | C12: 100 | D12: 100 | F12: 50 | G12: 50
A13: S250A | B13: 1 | C13: 600 | D13: 600 | F13: 300 | G13: 300

Sheet ВЕСНА 2014
A1: НАЗВАНИЕ | B1: АРТИКУЛ | C1: КОЛ-ВО | D1: ЦЕНА | E1: СУММА | G1: =SUM(E2:E2999) -> 1449300 | H1: =G1/50 -> 28986
A2: MALCH CLASIC | B2: RUBA6KI | C2: 51 | D2: 196 | E2: =C2*D2 -> 9996
A3: OBMANKI MALCH | B3: 1305 | C3: 20 | D3: 391 | E3: 7820
A4: UOMQ RUBA6KI | B4: 6605 | C4: 10 | D4: 464 | E4: 4640
A5: UOMQ RUBA6KI | B5: 6610 | C5: 10 | D5: 464 | E5: 4640
A6: UOMQ PIDJAK | B6: 8007 | C6: 24 | D6: 464 | E6: 11136
A7: UOMQ KURTKI | B7: 9006 | C7: 24 | D7: 927 | E7: 22248
A8: UOMQ KURTKI | B8: 9007 | C8: 13 | D8: 618 | E8: 8034
A9: UOMQ VETROVKI | B9: 8001 | C9: 12 | D9: 464 | E9: 5568
A10: KITY | B10: 6614 | C10: 14 | D10: 300 | E10: 4200
A11: DJEANS MAL4 | B11: A6681 | C11: 4 | D11: 546 | E11: 2184 | F11: 400
A12: PLATIE KOREA | B12: PLATIE KOREA | C12: 4 | D12: 309 | E12: 1236 | F12: 500
A13: DJEANS MAL4 | B13: A6678 | C13: 4 | D13: 587 | E13: 2348 | F13: 600
A14: DJEANS MAL | B14: 252 | C14: 3 | D14: 577 | E14: 1731 | F14: 800
A15: DJEANS MAL | B15: 801 | C15: 3 | D15: 577 | E15: 1731 | F15: 700
A16: BABO4KA | B16: 1 | C16: 200 | D16: 577 | E16: 115400 | F16: 50
A17: OBMANKI MALCH | B17: #0323 | C17: 7 | D17: 577 | E17: 4039
A18: BRUKI MALI6KI | B18: 836 | C18: 15 | D18: 258 | E18: 3870
A19: MAL4 VETROVKI ZAMOK | B19: 3422 | C19: 20 | D19: 402 | E19: 8040
A20: DJEANS SARAFAN | B20: 612 | C20: 5 | D20: 567 | E20: 2835
A21: OBMANKI MALCH | B21: #0206 | C21: 133 | D21: 300 | E21: 39900
A22: BABO4KI | B22: BABO4KI | C22: 120 | D22: 40 | E22: 4800
A23: VETROVKI MAL4 | B23: TDY15 | C23: 4 | D23: 567 | E23: 2268
A24: ZARA PIDJAK | B24: 013-62 | C24: 15 | D24: 460 | E24: 6900
A25: ZARA PLATIE | B25: 013-60 | C25: 16 | D25: 550 | E25: 8800
A26: ZARA PLATIE | B26: 013-42 | C26: 15 | D26: 550 | E26: 8250
A27: PIDJAK DEV | B27: 127026 | C27: 12 | D27: 370 | E27: 4440
A28: BEZRUK MEX | B28: 60976 | C28: 6 | D28: 450 | E28: 2700
A29: TUNIKI | B29: 013-35 | C29: 10 | D29: 500 | E29: 5000
A30: KOFTA DEV | B30: 136065 | C30: 24 | D30: 400 | E30: 9600
A31: JILETKA DEV BAL | B31: 965601 | C31: 10 | D31: 500 | E31: 5000
A32: YUBKI | B32: MK013 | C32: 15 | D32: 300 | E32: 4500
A33: YUBKI | B33: MK001 | C33: 15 | D33: 300 | E33: 4500
A34: BRUKI DJEANS | B34: 778566 | C34: 5 | D34: 570 | E34: 2850
A35: RUBA6KI DJEANS | B35: 5376 | C35: 5 | D35: 470 | E35: 2350
A36: RUBA6KI DJEANS | B36: 5350 | C36: 5 | D36: 370 | E36: 1850
A37: RUBA6KI DJEANS | B37: 5374 | C37: 5 | D37: 490 | E37: 2450
A38: RUBA6KI DJEANS | B38: 5355 | C38: 5 | D38: 490 | E38: 2450
A39: RUBA6KI DJEANS | B39: 5373 | C39: 5 | D39: 460 | E39: 2300
A40: PLATIE DJEANS | B40: KIDKANAI | C40: 9 | D40: 400 | E40: 3600
A41: KOFTA DEV | B41: 136099 | C41: 12 | D41: 400 | E41: 4800
A42: KOFTA DEV | B42: 878632 | C42: 25 | D42: 250 | E42: 6250
A43: SARAFAN | B43: 563019 | C43: 15 | D43: 285 | E43: 4275
A44: KOFTA DEV | B44: 826178 | C44: 15 | D44: 285 | E44: 4275
A45: YUBKI | B45: 526075 | C45: 10 | D45: 320 | E45: 3200
A46: 6UBA | B46: 3377 | C46: 12 | D46: 840 | E46: 10080
A47: SARAFAN | B47: 578608 | C47: 5 | D47: 500 | E47: 2500
A48: TUNIKI | B48: 526166 | C48: 20 | D48: 460 | E48: 9200
A49: KURTKI BALON | B49: 865788 | C49: 10 | D49: 740 | E49: 7400
A50: BEZRUK MEX | B50: 852 | C50: 4 | D50: 450 | E50: 1800
A51: BRUKI DEV | B51: 726100 | C51: 10 | D51: 500 | E51: 5000
A52: ZARA BABY | B52: #0652 | C52: 10 | D52: 500 | E52: 5000
A53: PLATIE | B53: 138089 | C53: 12 | D53: 450 | E53: 5400
A54: KOFTA DEV | B54: 136100 | C54: 6 | D54: 450 | E54: 2700
A55: PALTO DEV | B55: 136169 | C55: 18 | D55: 820 | E55: 14760
A56: BRUKI DJEANS | B56: 778501 | C56: 5 | D56: 570 | E56: 2850
A57: PLATIE | B57: 130354 | C57: 5 | D57: 800 | E57: 4000
A58: YUBKI | B58: 130396 | C58: 10 | D58: 350 | E58: 3500
A59: KOFTA DEV | B59: 130368 | C59: 10 | D59: 350 | E59: 3500
A60: KURTKA MAL4 PRADA | B60: 8027 | C60: 8 | D60: 550 | E60: 4400
A61: TOLSTOVKI | B61: 32260 | C61: 5 | D61: 470 | E61: 2350
A62: POLUVER | B62: MAXIMO DONOTI | C62: 56 | D62: 460 | E62: 25760
A63: KURTKI KOJ ZAM | B63: #078 | C63: 13 | D63: 560 | E63: 7280
A64: JILETKA ZAM6 MAL4 | B64: 38256 | C64: 10 | D64: 500 | E64: 5000
A65: JILETKA VATA | B65: 3620 | C65: 4 | D65: 450 | E65: 1800
A66: KOFTA MAL4 | B66: 78925 | C66: 10 | D66: 430 | E66: =C66*D66 -> 4300
A67: PIDJAK KETKA | B67: 78900 | C67: 5 | D67: 520 | E67: 2600
A68: BEZRUK DJEANS | B68: 60645 | C68: 5 | D68: 500 | E68: 2500
A69: BEZRUK DJEANS MEX | B69: 5362 | C69: 5 | D69: 500 | E69: 2500
A70: PIDJAK POLOSKA | B70: A5372 | C70: 5 | D70: 520 | E70: 2600
A71: PIDJAK VILVET OBABY | B71: 451 | C71: 5 | D71: 520 | E71: 2600
A72: STEG KOJZAM | B72: Y13003 | C72: 15 | D72: 630 | E72: 9450
A73: GAP KOM | B73: 2007 2009-1 | C73: 15 | D73: 520 | E73: 7800
A74: RUBA6KI ROMBIK | B74: ML-414 | C74: 10 | D74: 270 | E74: 2700
A75: RUBA6KI DJEANS | B75: 5289 | C75: 5 | D75: 330 | E75: 1650
A76: RUBA6KI ZEL DJEANS | B76: 5363 | C76: 5 | D76: 330 | E76: 1650
A77: RUBA6KI UZOR | B77: 5365 | C77: 10 | D77: 330 | E77: 3300
A78: RUBA6KI KLETKI DJEAN | B78: 5366 | C78: 5 | D78: 330 | E78: 1650
A79: RUBA6KI KLETKI | B79: 72 | C79: 5 | D79: 380 | E79: 1900
A80: RUBA6KI KLETKI | B80: 132 | C80: 10 | D80: 380 | E80: 3800
A81: RUBA6KI MELK KLET | B81: 175 | C81: 5 | D81: 380 | E81: 1900
A82: PIDJAK PESO4EK | B82: 78838 | C82: 5 | D82: 460 | E82: 2300
A83: RUBA6KI DKNY GAP | B83: DKNY | C83: 20 | D83: 350 | E83: 7000
A84: KURTI MAL | B84: TXW 3377 | C84: 4 | D84: 570 | E84: 2280
A85: YAKOR MAL4 | B85: S107 | C85: 10 | D85: 300 | E85: 3000
B86: X028 | C86: 4 | D86: 520 | E86: 2080
B87: X03 | C87: 4 | D87: 520 | E87: 2080
B88: 8611 | C88: 5 | D88: 220 | E88: 1100
B89: 8610 | C89: 10 | D89: 220 | E89: 2200
B90: 3007 | C90: 6 | D90: 309 | E90: 1854
B91: XYY-1320 | C91: 5 | D91: 536 | E91: 2680
B92: T1662B | C92: 3 | D92: 180 | E92: 540
B93: 3806 | C93: 5 | D93: 391 | E93: 1955
B94: 801 | C94: 4 | D94: 577 | E94: 2308
B95: T1880 | C95: 4 | D95: 175 | E95: 700
A96: GALSTUKI | B96: GALSTUKI | C96: 100 | D96: 30 | E96: 3000
B97: TX3-4123 | C97: 10 | D97: 1250 | E97: 12500
B98: TX3-4155 | C98: 5 | D98: 1250 | E98: 6250
B99: 8062 | C99: 6 | D99: 402 | E99: 2412
B100: 6022 | C100: 5 | D100: 680 | E100: 3400
B101: XYY1298 | C101: 10 | D101: 422 | E101: 4220
B102: 1305 | C102: 5 | D102: 391 | E102: 1955
A103: YBKA PALOMINO | B103: PALOMINO | C103: 6 | D103: 350 | E103: 2100
A104: 6TANY SEA | B104: 9032 | C104: 10 | D104: 450 | E104: 4500
A105: PUSER DEV | B105: 878682 | C105: 5 | D105: 250 | E105: 1250
B106: 526075 | C106: 5 | D106: 320 | E106: 1600
B107: #01360 | C107: 5 | D107: 400 | E107: 2000
B108: KAPOK | C108: 5 | D108: 160 | E108: 800
B109: MK001 | C109: 5 | D109: 300 | E109: 1500
B110: 130368 | C110: 5 | D110: 350 | E110: 1750
B111: 3015 | C111: 40 | D111: 258 | E111: 10320
A112: РАЯБЫЕ БЕРМУДЫ KAPOK | B112: 806 | C112: 5 | D112: 577 | E112: 2885
A113: ДЖИНС ДЕВ Б/Н | B113: 1743 | C113: 5 | D113: 670 | E113: 3350
A114: ДЖИНС ДЕВ С/Н T11 | B114: Т11 | C114: 18 | D114: 380 | E114: 6840
A115: ДЖИНСЫ АРАБ | B115: 6071 | C115: 5 | D115: 540 | E115: 2700
A116: ДЖИНСЫ ДЕВ С/Н | B116: 1026 | C116: 5 | D116: 587 | E116: 2935
A117: ДЖИНСЫ ДЕВ С/Н | B117: 911 | C117: 5 | D117: 587 | E117: 2935
A118: ДЖИНСЫ ДЕВ С/Н | B118: 81365 | C118: 10 | D118: 391 | E118: 3910
A119: ТРИКО МАЛЬЧ НАЧЕС | B119: Q70180 | C119: 10 | D119: 240 | E119: 2400
A120: ДЕВ КОФТЫ 6+1 | B120: 7570 | C120: 10 | D120: 260 | E120: 2600
A121: ДЕВ КОФТЫ 6+1 | B121: Q70182 | C121: 10 | D121: 250 | E121: 2500
A122: ДЕВ КОФТЫ 6+1 | B122: Q70181 | C122: 10 | D122: 240 | E122: 2400
A123: ДЕВ КОФТЫ 6+1 | B123: T001 | C123: 15 | D123: 240 | E123: 3600
A124: ДЕВ КОФТЫ 6+1 | B124: Y0029 | C124: 15 | D124: 210 | E124: 3150
A125: ДЕВ КОФТЫ 6+1 | B125: 78026 | C125: 11 | D125: 361 | E125: 3971
A126: ДВОЙКА ТРИКОТАЖ ПЛАТЬЕ КОР ФАСОН | B126: #0165 | C126: 20 | D126: 340 | E126: 6800
A127: ПИДЖАК ЧЕРНЫЙ ГОРОХ | B127: #0161 | C127: 4 | D127: 340 | E127: 1360
A128: ПИДЖАК ЧЕРНЫЙ ГОРОХ | B128: 809 | C128: 8 | D128: 278 | E128: 2224
A129: ПЛАТЬЕ БРОШЬ ЖЕЛТ И РОЗ | B129: LOSINI SVET NA4ES | C129: 22 | D129: 278 | E129: 6116
A130: ЛОСИНЫ ЦВЕТНЫЕ | B130: LOSINI ODNOT | C130: 15 | D130: 237 | E130: =C130*D130 -> 3555
A131: ЛОСИНЫ ОДНОТОН | B131: 8611 | C131: 15 | D131: 232 | E131: 3480
A132: ТРИКО МАЛЫШК KAPOK ДЕВ | B132: 8610 | C132: 20 | D132: 232 | E132: 4640
A133: ТРИКО МАЛЫШК KAPOK ДЕВ | B133: 8619 | C133: 40 | D133: 252 | E133: 10080
A134: ТРИКО МАЛЫШК KAPOK ДЕВ | B134: 8609 | C134: 25 | D134: 232 | E134: 5800
A135: ТРИКО МАЛЫШК KAPOK ДЕВ | B135: 8017 | C135: 5 | D135: 232 | E135: 1160
A136: ДЕВ ДЖИНСЫ Б/Н | B136: 8008 | C136: 5 | D136: 628 | E136: 3140
A137: ДЕВ ДЖИНСЫ CHANEL | B137: 615 | C137: 5 | D137: 412 | E137: 2060
A138: ДЖИНС ЮБКА | B138: 8010 | C138: 5 | D138: 628 | E138: 3140
A139: ДЖИНС ДЕВ ЯБЛОКО Б/Н | B139: 8014 | C139: 5 | D139: 628 | E139: 3140
A140: ДЖИНС ДЕВ Б/Н | B140: 902 | C140: 5 | D140: 587 | E140: 2935
A141: ДЖИНС ДЕВ Б/Н | B141: 6022 | C141: 5 | D141: 680 | E141: 3400
A142: СПОРТ КОСТЮМ СЕР УШКИ | B142: 6023 | C142: 10 | D142: 720 | E142: 7200
A143: СПОРТ КОСТЮМ ПОД ТУРЦ | B143: 12FWSKK005 | C143: 12 | D143: 340 | E143: 4080
A144: ЮБКИ ТЕПЛЫЕ СИН И КРАС | B144: CBFW-SK005 | C144: 5 | D144: 400 | E144: 2000
A145: ЮБКИ ВИЛЬВЕТ CURLY DOLL | B145: SK035 | C145: 10 | D145: 400 | E145: 4000
A146: ЮБКИ ТРИКОТАЖ | B146: A379 | C146: 9 | D146: 200 | E146: 1800
A147: СМОКИНГ | B147: FRAK | C147: 16 | D147: 453 | E147: 7248
A148: ПАРЧА | B148: PAR4A | C148: 4 | D148: 550 | E148: 2200
A149: КУРТКА СТЕГ ЧЕРН МИШКА ДЕВ | B149: K2089 | C149: 5 | D149: 750 | E149: 3750
A150: СВИТЕР СЕРДЕЧКИ ТРАВКА | B150: 9992 | C150: 20 | D150: 525 | E150: 10500
A151: КОСТЮМ CICCERO | B151: TX3-4180 | C151: 5 | D151: 1250 | E151: 6250
A152: ДЖИНС АРАБ ДЕВ T12 | B152: Т12 | C152: 6 | D152: 380 | E152: 2280
A153: ДЖИНС АРАБ ДЕВ | B153: Т16 | C153: 6 | D153: 380 | E153: 2280
A154: РАЯБЫЕ БЕРМУДЫ KAPOK | B154: 3016 | C154: 35 | D154: 258 | E154: 9030
A155: ЛОСИНЫ ГОРОХ | B155: 9013 | C155: 40 | D155: 160 | E155: 6400
A156: КОФТА LAMOSINI | B156: LM6002 | C156: 5 | D156: 260 | E156: 1300
A157: LOVE ЛЕОПАРД КОФТА | B157: XYY-1303 | C157: 11 | D157: 567 | E157: 6237
A158: МАЛЬЧ ЦВЕТ БРЮКИ НАЧЕС | B158: 1809 | C158: 15 | D158: 371 | E158: 5565
A159: МАЛЬЧ ЦВЕТ БРЮКИ НАЧЕС | B159: 1808 | C159: 20 | D159: 381 | E159: 7620
A160: ТРИКО VERCACHE | B160: 81318 | C160: 10 | D160: 433 | E160: 4330
A161: ТРИКО | B161: 81365 | C161: 10 | D161: 391 | E161: 3910
B162: XYY-1255 | C162: 8 | D162: 484 | E162: 3872
A163: МАЛЬЧ ДЖИНСЫ ZARA | B163: D5303 | C163: 5 | D163: 391 | E163: 1955
A164: MSkIDS | B164: B6645 | C164: 6 | D164: 320 | E164: 1920
B165: T1638B | C165: 15 | D165: 220 | E165: 3300
B166: T1627B | C166: 15 | D166: 280 | E166: 4200
B167: T1632B | C167: 30 | D167: 200 | E167: 6000
B168: T1609B | C168: 5 | D168: 280 | E168: 1400
B169: T1660B | C169: 10 | D169: 210 | E169: 2100
A170: ZARA ЦВЕТНЫЕ БРЮКИ | B170: ZARA BRYKI | C170: 103 | D170: 361 | E170: 37183
A171: ДЖИНСЫ НА ПОДТЯЖКАХ ZARA | B171: ZARA KOM | C171: 38 | D171: 422 | E171: 16036
B172: 137151 | C172: 5 | D172: 450 | E172: 2250
B173: XYY-1076 | C173: 5 | D173: 430 | E173: 2150
A174: ПЛАТЬЕ SMAIL DRAGON | B174: 83210 | C174: 6 | D174: 773 | E174: 4638
A175: ПЛАТЬЕ SMAIL DRAGON | B175: 83165 | C175: 6 | D175: 742 | E175: 4452
A176: ПЛАТЬЕ SMAIL DRAGON | B176: 83209 | C176: 12 | D176: 773 | E176: 9276
A177: ВОДОЛАЗ БЕЛАЯ TOMATO КОШКА ЛЕОП | B177: Q70179 | C177: 5 | D177: 220 | E177: 1100
A178: RXL КОФТА ГОРОШЕК | B178: 358 | C178: 5 | D178: 165 | E178: 825
A179: RXL КОФТА СЕРДЕЧКО | B179: 301 | C179: 5 | D179: 165 | E179: 825
A180: ВОДОЛАЗ ВЯЗАНН | B180: D083 | C180: 9 | D180: 319 | E180: 2871
A181: ВОДОЛАЗ ВЯЗАНН | B181: D082 | C181: 5 | D181: 319 | E181: 1595
A182: ВОДОЛАЗ ВЯЗАНН | B182: 5221 | C182: 5 | D182: 350 | E182: 1750
A183: ВОДОЛАЗ ВЯЗАНН | B183: D125 | C183: 5 | D183: 330 | E183: 1650
A184: ВОДОЛАЗ ВЯЗАНН | B184: 5218 | C184: 15 | D184: 350 | E184: 5250
A185: ПЛАТЬЕ КОР ФАСОН | B185: 9915 | C185: 16 | D185: 546 | E185: 8736
A186: ПЛАТЬЕ КОР ФАСОН | B186: 9903 | C186: 15 | D186: 546 | E186: 8190
A187: ПЛАТЬЕ КОР ФАСОН | B187: 9912 | C187: 5 | D187: 546 | E187: 2730
A188: ТРИКО KAPOK ДЕВОЧК | B188: 13230 | C188: 6 | D188: 245 | E188: 1470
A189: ДЖИНСЫ САША ЧЕРН | B189: 6629 | C189: 6 | D189: 660 | E189: 3960
A190: ДЖИНСЫ СИНИЕ С РИСУНКОМ | B190: DH132 | C190: 5 | D190: 660 | E190: 3300
A191: ДЖИНСЫ С БЕЛЫМ ГИПЮРОМ | B191: JKSP4683 | C191: 5 | D191: 433 | E191: 2165
A192: BURBERRY ВЕТРОВКИ | B192: 619 | C192: 15 | D192: 300 | E192: 4500
A193: ТРИКО ДЕВ КОШКА | B193: 8605 | C193: 15 | D193: 232 | E193: 3480
A194: ЛОСИНЫ ГОРОХ ЦВЕТ KAPOK | B194: 8613 | C194: 20 | D194: 165 | E194: =C194*D194 -> 3300
B195: XYY-1298 | C195: 15 | D195: 422 | E195: 6330
A196: ЛОСИНЫ ЖЕМЧУГ | B196: 3073 | C196: 70 | D196: 160 | E196: 11200
A197: КОФТОКИ MINI KID ЗАЙЧИК | B197: 868801 | C197: 5 | D197: 150 | E197: 750
A198: ТРИКО ТОНКОЕ | B198: 13707 | C198: 10 | D198: 371 | E198: 3710
A199: ТРИКО S ТОНКОЕ | B199: GT526 | C199: 10 | D199: 319 | E199: 3190
A200: ТРИКО VOGUE | B200: A919 | C200: 5 | D200: 391 | E200: 1955
... 113 more rows

Sheet ЛЕТО 2014
A1: НАЗВАНИЕ | B1: АРТИКУЛ | C1: КОЛ-ВО | D1: ЦЕНА | F1: СУММА | G1: ПРОДАЖА | H1: =SUM(F2:F72) -> 15731 | I1: =H1/6.1 -> 2578.852459 | J1: =I1+'ВЕСНА 2014'!H1 -> 31564.85246 | N1: 32000
B2: WY13216 | C2: 6 | D2: 35 | F2: =C2*D2 -> 210 | G2: =D2*11 -> 385 | H2: =H1*10/54.5 -> 2886.422018
B3: SS35257A | C3: 12 | D3: 30 | F3: 360 | G3: 330
B4: F08 | C4: 10 | D4: 45 | F4: 450 | G4: 495
B5: 1308 6ORTIKI | C5: 11 | D5: 30 | F5: 330 | G5: 330
B6: GH130300 | C6: 6 | D6: 37 | F6: 222 | G6: 407
B7: 108 | C7: 30 | D7: 11.5 | F7: 345 | G7: 126.5
B8: D37 | C8: 15 | D8: 22 | F8: 330 | G8: 242
B9: 5011 | C9: 11 | D9: 40 | F9: 440 | G9: 440
B10: XYY1153A | C10: 7 | D10: 35 | F10: 245 | G10: 385
B11: 2126 | C11: 2 | D11: 30 | F11: 60 | G11: 330
B12: A258 hana elis sarafan | C12: 5 | D12: 50 | F12: 250 | G12: 550
B13: 13033 kapok | C13: 5 | D13: 15 | F13: 75 | G13: 165
B14: 13018 kapok | C14: 10 | D14: 15 | F14: 150 | G14: 165
B15: 3001 kapok | C15: 30 | D15: 15 | F15: 450 | G15: 165
B16: 9002 kapok | C16: 25 | D16: 15 | F16: 375 | G16: 165
B17: CBMG-T075 MAIKI | C17: 20 | D17: 15 | F17: 300 | G17: 165
B18: 3222 losini | C18: 17 | D18: 15 | F18: 255 | G18: 165
B19: X12122 | C19: 8 | D19: 32 | F19: 256 | G19: 352
B20: 708336 shorti | C20: 20 | D20: 25 | F20: 500 | G20: 275
B21: 2014-03-30 | F21: 0 | G21: 0
B22: T1728 | C22: 1 | D22: 20 | F22: 20 | G22: 220
B23: T1047 | C23: 10 | D23: 16 | F23: 160 | G23: 176
B24: T1717 | C24: 25 | D24: 16 | F24: 400 | G24: 176
B25: T1676 | C25: 20 | D25: 20 | F25: 400 | G25: 220
B26: 807 | C26: 5 | D26: 23 | F26: 115 | G26: 253
B27: 1366 | C27: 12 | D27: 23 | F27: 276 | G27: 253
B28: XY38091 | C28: 10 | D28: 22 | F28: 220 | G28: 242
B29: 2030 | C29: 6 | D29: 12 | F29: 72 | G29: 132
B30: XY33084 | C30: 5 | D30: 18 | F30: 90 | G30: 198
B31: 198 | C31: 5 | D31: 30 | F31: 150 | G31: 330
B32: T1708 | C32: 1 | D32: 13 | F32: 13 | G32: 143
B33: K-019 | C33: 10 | D33: 34 | F33: 340 | G33: 374
B34: 3908 | C34: 10 | D34: 30 | F34: =C34*D34 -> 300 | G34: =D34*11 -> 330
B35: K63 | C35: 15 | D35: 33 | F35: 495 | G35: 363
B36: 102 | C36: 9 | D36: 25 | F36: 225 | G36: 275
B37: 1923 | C37: 6 | D37: 12 | F37: 72 | G37: 132
B38: 1927 | C38: 5 | D38: 12 | F38: 60 | G38: 132
B39: A810 | C39: 4 | D39: 32 | F39: 128 | G39: 352
B40: ZO020 | C40: 5 | D40: 31 | F40: 155 | G40: 341
B41: S04 | C41: 10 | D41: 25 | F41: 250 | G41: 275
B42: 613 | C42: 5 | D42: 20 | F42: 100 | G42: 220
B43: 8827 | C43: 5 | D43: 27 | F43: 135 | G43: 297
B44: #026 | C44: 5 | D44: 20 | F44: 100 | G44: 220
B45: 83417 | C45: 10 | D45: 32 | F45: 320 | G45: 352
B46: 813019 | C46: 10 | D46: 28 | F46: 280 | G46: 308
B47: 117 | C47: 9 | D47: 11.5 | F47: 103.5 | G47: 126.5
B48: 21172 | C48: 5 | D48: 33 | F48: 165 | G48: 363
B49: 1425 | C49: 10 | D49: 25 | F49: 250 | G49: 275
B50: 3917 | C50: 5 | D50: 35 | F50: 175 | G50: 385
B51: 13008 | C51: 5 | D51: 28 | F51: 140 | G51: 308
B52: 3916 | C52: 4 | D52: 35 | F52: 140 | G52: 385
B53: A13603 | C53: 5 | D53: 32 | F53: 160 | G53: 352
B54: 815 | C54: 15 | D54: 25 | F54: 375 | G54: 275
B55: 6620 | C55: 4 | D55: 25 | F55: 100 | G55: 275
B56: GH130426 | C56: 18 | D56: 33 | F56: 594 | G56: 363
B57: FS047 | C57: 5 | D57: 30 | F57: 150 | G57: 330
B58: 721 | C58: 5 | D58: 11.5 | F58: 57.5 | G58: 126.5
B59: GH130445 | C59: 12 | D59: 24 | F59: 288 | G59: 264
B60: 9002 | C60: 20 | D60: 15 | F60: 300 | G60: 165
B61: 108 | C61: 10 | D61: 12 | F61: 120 | G61: 132
B62: 113 | C62: 10 | D62: 12 | F62: 120 | G62: 132
B63: 3001 | C63: 5 | D63: 15 | F63: 75 | G63: 165
B64: #07210 | C64: 4 | D64: 26 | F64: 104 | G64: 286
B65: #07230 | C65: 5 | D65: 26 | F65: 130 | G65: 286
B66: #002 | C66: 4 | D66: 26 | F66: =C66*D66 -> 104 | G66: =D66*11 -> 286
B67: 708718 | C67: 9 | D67: 45 | F67: 405 | G67: 495
B68: A8638 | C68: 6 | D68: 40 | F68: 240 | G68: 440
B69: 8026 | C69: 9 | D69: 23 | F69: 207 | G69: 253
A70: ШОРТЫ С ГИПЮР | B70: 8326 | C70: 12 | D70: 17 | F70: 204 | G70: 187
B71: 86176 | C71: 10 | D71: 30 | F71: 300 | G71: 330
B72: 1328 | C72: 7 | D72: 35 | F72: 245 | G72: 385
A73: КЕПКИ ШАПКИ
B74: OGURES | C74: 75 | D74: 120 | F74: =C74*D74 -> 9000 | G74: =C74*D74 -> 9000
B75: KLETKA | C75: 16 | D75: 110 | F75: 1760 | G75: 1760
B76: LEN | C76: 32 | D76: 110 | F76: 3520 | G76: 3520
B77: URA | C77: 40 | D77: 140 | F77: 5600 | G77: 5600
B78: JIRIK | C78: 30 | D78: 110 | F78: 3300 | G78: 3300
B79: BARSELONA | C79: 25 | D79: 120 | F79: 3000 | G79: 3000
B80: MI6KA | C80: 25 | D80: 100 | F80: 2500 | G80: 2500
B81: SETKA | C81: 20 | D81: 100 | F81: 2000 | G81: 2000
B82: ZAVYAZKA | C82: 30 | D82: 170 | F82: 5100 | G82: 5100
B83: 6AKER | C83: 35 | D83: 140 | F83: 4900 | G83: 4900
A84: 2014-05-11 | F84: 0 | G84: =D84*11 -> 0
B85: T1628 | C85: 15 | D85: 140 | G85: 1540
B86: T1729 | C86: 15 | D86: 130 | G86: 1430
B87: T1675B | C87: 15 | D87: 130 | G87: 1430
B88: T1731 | C88: 15 | D88: 130 | G88: 1430
B89: T1673 | C89: 15 | D89: 130 | G89: 1430
B90: T1635 | C90: 10 | D90: 130 | G90: 1430
B91: T1682 | C91: 5 | D91: 130 | G91: 1430
B92: 110028 | C92: 5 | D92: 150 | G92: 1650
B93: 4647 | C93: 15 | D93: 165 | G93: 1815
B94: 3912 | C94: 10 | D94: 180 | G94: 1980
A95: VOSTOK | F95: =C95*D95 -> 0
B96: T2028 | C96: 25 | D96: 160
B97: T2113 | C97: 15 | D97: 160
B98: T2071B | C98: 5 | D98: 170
B99: T2017 | C99: 5 | D99: 170
B100: T2075 | C100: 5 | D100: 170
B101: T2009 | C101: 5 | D101: 160
F102: =C102*D102 -> 0
A103: 6LYAPA | B103: BURBERRY | C103: 17 | D103: 180 | G103: =C103*D103 -> 3060
B104: PANAMA LEN | C104: 10 | D104: 120 | G104: 1200
B105: KEP FRIEND | C105: 10 | D105: 110 | G105: 1100
B106: KEP BABO4 | C106: 5 | D106: 140 | G106: 700
B107: PANAMA GIPUR | C107: 18 | D107: 100 | G107: 1800
B108: PANAMA SAMOLET | C108: 20 | D108: 120 | G108: 2400
B109: PANAMA P4ELKA | C109: 8 | D109: 120 | G109: 960
B110: PNAMA SAFARI | C110: 15 | D110: 120 | G110: 1800
B111: PANAMA CVETOK | C111: 21 | D111: 120 | G111: 2520
B112: OGUREC | C112: 10 | D112: 120 | G112: 1200
B113: BARSELONA | C113: 15 | D113: 120 | G113: 1800
B114: 6LYAPA SVETOK | C114: 7 | D114: 190 | G114: 1330
A115: 2014-05-18 | F115: =C115*D115 -> 0
B116: 1535 | C116: 10 | D116: 300 | F116: 3000 | G116: РАСЧЕТ
B117: T2170 | C117: 25 | D117: 200 | F117: 5000
B118: T2122 | C118: 15 | D118: 200 | F118: 3000
B119: UOMQ | C119: 12 | D119: 280 | F119: 3360
A120: 2014-06-02 | F120: 0
B121: T2121 | C121: 35 | D121: 165 | F121: 5775
B122: T2178 | C122: 45 | D122: 120 | F122: 5400
B123: T2167 | C123: 50 | D123: 120 | F123: 6000
B124: T2171 | C124: 50 | D124: 120 | F124: 6000
A125: 2014-06-03 | F125: 0
B126: D17 | C126: 30 | D126: 265 | E126: =C126*D126 -> 7950 | G126: РАСЧЕТ
B127: 3958 | C127: 10 | D127: 260 | E127: 2600
B128: 82631 | C128: 15 | D128: 216 | E128: 3240
B129: 16851 | C129: 20 | D129: 216 | E129: 4320
B130: ZX-063 | C130: 5 | D130: 216 | E130: 1080
B131: 16852 | C131: 10 | D131: 171 | E131: 1710
B132: 82625 | C132: 30 | D132: 165 | E132: 4950
B133: 16847 | C133: 40 | D133: 230 | E133: 9200
B134: 16853 | C134: 10 | D134: 171 | E134: 1710
B135: GT-543 | C135: 30 | D135: 255 | E135: 7650
B136: 1416 | C136: 30 | D136: 190 | E136: 5700
B137: 16841 | C137: 40 | D137: 190 | E137: 7600
B138: 16839 | C138: 50 | D138: 210 | E138: 10500
B139: 3959 | C139: 10 | D139: 255 | E139: 2550
B140: 8589 | C140: 5 | D140: 220 | E140: 1100
B141: 2915 | C141: 5 | D141: 220 | E141: 1100
A142: 2014-06-08 | E142: 0
B143: 2303 | C143: 24 | D143: 167 | E143: 4008
B144: 2304 | C144: 24 | D144: 167 | E144: 4008
B145: 2305 | C145: 24 | D145: 167 | E145: 4008
B146: C305WYE5 | C146: 10 | D146: 333 | E146: 3330
B147: 86258 | C147: 10 | D147: 422 | E147: 4220
B148: 89121 | C148: 10 | D148: 324 | E148: 3240
B149: 9022 | C149: 8 | D149: 285 | E149: 2280
B150: 82111 | C150: 10 | D150: 313 | E150: 3130
B151: 82107 | C151: 5 | D151: 313 | E151: 1565

Sheet СКЛАД ЗИМА
A1: артикул | B1: коичество | C1: цена | I1: =SUM(D2:D136) -> 38448 | J1: =I1/6.1 -> 6302.95082 | K1: =J1*1.1 -> 6933.245902
A2: W8306 | B2: 80 | C2: 34 | D2: =B2*C2 -> 2720 | E2: =C2*10 -> 340 | F2: =B2*E2 -> 27200 | I2: =SUM(F3:F136) -> 357280 | J2: =I2/54.5 -> 6555.59633
A3: 129254 | B3: 36 | C3: 45 | D3: 1620 | E3: 450 | F3: 16200
A4: LOSINI | B4: 75 | C4: 27 | D4: 2025 | E4: 270 | F4: 20250
A5: W8303 | B5: =33*4 -> 132 | C5: 36 | D5: 4752 | E5: 360 | F5: 47520
A6: #013850A | B6: 30 | C6: 115 | D6: 3450 | E6: 1150 | F6: 34500 | I6: =SUM(F2:F10) -> 332330 | J6: =I6/52 -> 6390.961538
A7: 83165 | B7: 78 | C7: 72 | D7: 5616 | E7: 720 | F7: 56160
A8: 83210 | B8: 54 | C8: 75 | D8: 4050 | E8: 750 | F8: 40500
A9: 83209 | B9: 84 | C9: 75 | D9: 6300 | E9: 750 | F9: 63000
A10: B04 | B10: 15 | C10: 180 | D10: 2700 | E10: 1800 | F10: 27000
A11: ZARAKOM | B11: 3 | C11: 40 | D11: 120 | E11: 400 | F11: 1200
A12: #013-42 | B12: 5 | C12: 40 | D12: 200 | E12: 400 | F12: 2000
A13: #013-60 | B13: 5 | C13: 40 | D13: 200 | E13: 400 | F13: 2000
A14: 816109 | B14: 5 | C14: 35 | D14: 175 | E14: 350 | F14: 1750
A15: 2182c | B15: 15 | C15: 19 | D15: 285 | E15: 190 | F15: 2850
A16: 2181c | B16: 5 | C16: 19 | D16: 95 | E16: 190 | F16: 950
A17: T1660B | B17: 15 | C17: 25 | D17: 375 | E17: 250 | F17: 3750
A18: T1609B | B18: 20 | C18: 25 | D18: 500 | E18: 250 | F18: 5000
A19: T1638B | B19: 15 | C19: 25 | D19: 375 | E19: 250 | F19: 3750
A20: T1632B | B20: 10 | C20: 25 | D20: 250 | E20: 250 | F20: 2500
A21: T1867 | B21: 5 | C21: 25 | D21: 125 | E21: 250 | F21: 1250
A22: Y0029 | B22: 10 | C22: 23 | D22: 230 | E22: 230 | F22: 2300
A23: Q70181 | B23: 10 | C23: 23 | D23: 230 | E23: 230 | F23: 2300
A24: Q70182 | B24: 5 | C24: 23 | D24: 115 | E24: 230 | F24: 1150
A25: T001 | B25: 5 | C25: 23 | D25: 115 | E25: 230 | F25: 1150
A26: 868801 | B26: 5 | C26: 28 | D26: 140 | E26: 280 | F26: 1400
A27: #013-62 | B27: 2 | C27: 40 | D27: 80 | E27: 400 | F27: 800
A28: 8605 | B28: 15 | C28: 22.5 | D28: 337.5 | E28: 225 | F28: 3375
A29: 13230 | B29: 15 | C29: 24.5 | D29: 367.5 | E29: 245 | F29: 3675
A30: 8609 | B30: 20 | C30: 22.5 | D30: 450 | E30: 225 | F30: 4500
A31: 8610 | B31: 15 | C31: 22.5 | D31: 337.5 | E31: 225 | F31: 3375
A32: 8611 | B32: 5 | C32: 22.5 | D32: 112.5 | E32: 225 | F32: 1125

Sheet ОСЕНЬ ГУАН 2014
A1: НАЗВАНИЕ | B1: КОД | C1: КОЛ-ВО | D1: ЦЕНА | E1: СУММА | F1: ЦЕНА
B2: BBSHU
B3: 727 | C3: 75 | D3: 17 | E3: =C3*D3 -> 1275 | F3: =D3*12 -> 204
B4: 2208 | C4: 60 | D4: 17 | E4: 1020 | F4: 204
B5: 739 | C5: 75 | D5: 17 | E5: 1275 | F5: 204
B6: 711 | C6: 75 | D6: 17 | E6: 1275 | F6: 204
B7: 786 | C7: 75 | D7: 17 | E7: 1275 | F7: 204
B8: 768 | C8: 60 | D8: 17 | E8: 1020 | F8: 204
B9: 809 | C9: 50 | D9: 30 | E9: 1500 | F9: 360
B10: 827 | C10: 50 | D10: 30 | E10: 1500 | F10: 360
B11: 806 | C11: 30 | D11: 35 | E11: 1050 | F11: 420
B12: 230113 | C12: 45 | D12: 35 | E12: 1575 | F12: 420
B13: 230213 | C13: 50 | D13: 35 | E13: 1750 | F13: 420
B14: 802 | C14: 50 | D14: 28 | E14: 1400 | F14: 336
B15: 761 | C15: 75 | D15: 23 | E15: 1725 | F15: 276 | G15: Расчет
B16: MOTHER BEAR | E16: 0 | F16: 0
A17: трик копюшон | B17: 1121 | C17: 36 | D17: 70 | E17: 2520 | F17: 840
A18: S син\электрик | B18: 1098 | C18: 32 | D18: 70 | E18: 2240 | F18: 840
A19: горох девоч | B19: 1656 | C19: 24 | D19: 70 | E19: 1680 | F19: 840
A20: стеганка мальч | B20: 1057 | C20: 45 | D20: 63 | E20: 2835 | F20: 756
A21: мальч мех | B21: 1814 | C21: 24 | D21: 62 | E21: 1488 | F21: 744
A22: однотон | B22: 1120 | C22: 36 | D22: 63 | E22: 2268 | F22: 756 | G22: Расчет
B23: DOMEI LAND | E23: 0 | F23: 0
B24: 86307 | C24: 30 | D24: 58 | E24: 1740 | F24: 696
B25: 86305 | C25: 30 | D25: 58 | E25: 1740 | F25: 696
B26: 126044 | C26: 16 | D26: 43 | E26: 688 | F26: 516
B27: 86649 | C27: 30 | D27: 47 | E27: 1410 | F27: 564
B28: 86293 | C28: 20 | D28: 49 | E28: 980 | F28: 588
B29: 86286 | C29: 20 | D29: 49 | E29: 980 | F29: 588
B30: 69931 | C30: 20 | D30: 41 | E30: 820 | F30: 492
B31: 86645 | C31: 20 | D31: 49 | E31: 980 | F31: 588
B32: 86650 | C32: 20 | D32: 49 | E32: 980 | F32: 588
B33: 999269 | C33: 20 | D33: 29 | E33: 580 | F33: 348
B34: 999259 | C34: 10 | D34: 29 | E34: 290 | F34: 348
B35: 68941 | C35: 30 | D35: 21 | E35: =C35*D35 -> 630 | F35: =D35*12 -> 252
B36: 69859 | C36: 30 | D36: 22 | E36: 660 | F36: 264
B37: 68315 | C37: 30 | D37: 22 | E37: 660 | F37: 264
B38: 86614 | C38: 9 | D38: 22 | E38: 198 | F38: 264 | G38: Расчет
B39: DJEANS | E39: 0 | F39: 0
B40: 2111 | C40: 10 | D40: 44 | E40: 440 | F40: 528
B41: 5026 | C41: 12 | D41: 55 | E41: 660 | F41: 660
B42: 2122 | C42: 10 | D42: 44 | E42: 440 | F42: 528
B43: 8308 | C43: 10 | D43: 42 | E43: 420 | F43: 504
B44: 8311 | C44: 10 | D44: 45 | E44: 450 | F44: 540
B45: 8309 | C45: 10 | D45: 42 | E45: 420 | F45: 504
B46: 2558 | C46: 12 | D46: 60 | E46: 720 | F46: 720
B47: 2503 | C47: 12 | D47: 50 | E47: 600 | F47: 600 | G47: Расчет
B48: MAY BOYS | E48: 0 | F48: 0
B49: 1473 | C49: 15 | D49: 45 | E49: 675 | F49: 540
B50: 71-72 | C50: 10 | D50: 33 | E50: 330 | F50: 396
B51: 134-132-223 | C51: 15 | D51: 33 | E51: 495 | F51: 396
B52: 56-168-170 | C52: 15 | D52: 33 | E52: 495 | F52: 396
B53: 121-122 | C53: 10 | D53: 33 | E53: 330 | F53: 396
B54: 1468 | C54: 15 | D54: 48 | E54: 720 | F54: 576
B55: 1325 | C55: 10 | D55: 45 | E55: 450 | F55: 540
B56: 1304 | C56: 10 | D56: 45 | E56: 450 | F56: 540
B57: 1575 | C57: 10 | D57: 45 | E57: 450 | F57: 540
B58: 1590 | C58: 15 | D58: 46 | E58: 690 | F58: 552
B59: 1418 | C59: 15 | D59: 48 | E59: 720 | F59: 576
B60: 1508 | C60: 20 | D60: 45 | E60: 900 | F60: 540 | G60: Расчет
B61: GOLD FROG VILVET | E61: 0 | F61: 0
B62: YTL048B | C62: 160 | D62: 44 | E62: 7040 | F62: 528
B63: YTL051B | C63: 186 | D63: 49 | E63: 9114 | F63: 588
B64: YTL051S | C64: 169 | D64: 44 | E64: 7436 | F64: 528
B65: YTL048S | C65: 200 | D65: 39 | E65: 7800 | F65: 468 | G65: Расчет
B66: VE6ALKI | E66: 0 | F66: 0
C67: 300 | D67: 1.3 | E67: =C67*D67 -> 390 | F67: =D67*12 -> 15.6
C68: 200 | D68: 1.8 | E68: 360 | F68: 21.6
B69: KURTKI SINTEPON | E69: 0 | F69: 0
B70: 3040 | C70: 30 | D70: 53 | E70: 1590 | F70: 636
B71: 3220 | C71: 40 | D71: 63 | E71: 2520 | F71: 756
B72: 3280 | C72: 30 | D72: 78 | E72: 2340 | F72: 936
B73: #01803 | C73: 50 | D73: 73 | E73: 3650 | F73: 876
B74: 3513 | C74: 48 | D74: 78 | E74: 3744 | F74: 936
B75: 3600 | C75: 40 | D75: 44 | E75: 1760 | F75: 528 | G75: Расчет
B76: ТРИКОТАЖ КОФТА МАЛЬЧ
A77: трик кофты на замке | B77: 1162 | C77: 15 | D77: 32 | E77: =C77*D77 -> 480 | F77: =D77*12 -> 384
A78: трик кофты на замке | B78: 1271 | C78: 50 | D78: 32 | E78: 1600 | F78: 384
A79: трик кофты на замке | B79: 1175 | C79: 10 | D79: 32 | E79: 320 | F79: 384 | G79: Расчет
B80: МАЛЬЧ РУБАШКИ МАЛЫШ | E80: 0 | F80: 0
B81: 814013 | C81: 50 | D81: 22 | E81: 1100 | F81: 264
B82: 814048 | C82: 25 | D82: 22 | E82: 550 | F82: 264
B83: 814051 | C83: 50 | D83: 22 | E83: 1100 | F83: 264
B84: 214001 | C84: 50 | D84: 22 | E84: 1100 | F84: 264 | G84: Расчет
B85: ПИЖАМЫ | E85: 0 | F85: 0
B86: 117S | C86: 60 | D86: 27 | E86: 1620 | F86: 324
B87: 113S | C87: 60 | D87: 27 | E87: 1620 | F87: 324 | G87: Расчет
B88: ANTKLAR | E88: 0 | F88: 0
A89: футболки длин рук | B89: A022 | C89: 100 | D89: 17 | E89: 1700 | F89: 204
A90: футболки длин рук | B90: A025 | C90: 100 | D90: 17 | E90: 1700 | F90: 204
A91: футболки длин рук | B91: S119 | C91: 100 | D91: 22 | E91: 2200 | F91: 264
A92: футболки длин рук | B92: S250 | C92: 100 | D92: 22 | E92: 2200 | F92: 264
A93: футболки длин рук | B93: S233 | C93: 100 | D93: 22 | E93: 2200 | F93: 264
B94: B537 | C94: 75 | D94: 20 | E94: 1500 | F94: 240 | G94: Расчет
B95: FRAK | E95: 0 | F95: 0
B96: #011 | C96: 120 | D96: 44 | E96: 5280 | F96: 528
B97: #01 | C97: 120 | D97: 44 | E97: 5280 | F97: 528
B98: #06 | C98: 120 | D98: 44 | E98: 5280 | F98: 528 | G98: Расчет
B99: 1070 | E99: 0 | F99: 0
B100: 4221 | C100: 30 | D100: 27 | E100: 810 | F100: 324
B101: 4224 | C101: 45 | D101: 23 | E101: 1035 | F101: 276
B102: X8012 | C102: 30 | D102: 39 | E102: 1170 | F102: 468
B103: D-21 | C103: 45 | D103: 27 | E103: 1215 | F103: 324
B104: DK-12 | C104: 60 | D104: 33 | E104: 1980 | F104: 396
B105: XY-03 | C105: 10 | D105: 49 | E105: 490 | F105: 588
B106: XY-15 | C106: 10 | D106: 49 | E106: 490 | F106: 588
B107: XY-10 | C107: 10 | D107: 51 | E107: 510 | F107: 612
B108: XY-02 | C108: 10 | D108: 49 | E108: 490 | F108: 588
B109: XY-06 | C109: 10 | D109: 49 | E109: =C109*D109 -> 490 | F109: =D109*12 -> 588
B110: XY-01 | C110: 10 | D110: 49 | E110: 490 | F110: 588
B111: XY-16 | C111: 10 | D111: 49 | E111: 490 | F111: 588 | G111: Расчет
B112: ВОДАЛАЗКИ ВЯЗАННЫЕ | E112: 0 | F112: 0
B113: D109 | C113: 10 | D113: 32 | E113: 320 | F113: 384
B114: D103 | C114: 50 | D114: 32 | E114: 1600 | F114: 384
B115: D113 | C115: 55 | D115: 32 | E115: 1760 | F115: 384
B116: D110 | C116: 25 | D116: 32 | E116: 800 | F116: 384 | G116: Расчет
B117: ЛОСИНЫ | E117: 0 | F117: 0
B118: 216095 | C118: 45 | D118: 18 | E118: 810 | F118: 216
B119: 216144 | C119: 75 | D119: 18 | E119: 1350 | F119: 216
B120: 14005 | C120: 75 | D120: 18 | E120: 1350 | F120: 216 | G120: Расчет
B121: 1072D | E121: 0 | F121: 0
B122: 89185 | C122: 75 | D122: 31 | E122: 2325 | F122: 372
B123: 89210 | C123: 45 | D123: 44 | E123: 1980 | F123: 528
B124: 89207 | C124: 75 | D124: 29 | E124: 2175 | F124: 348
B125: 89190 | C125: 60 | D125: 28 | E125: 1680 | F125: 336
B126: 86235 | C126: 45 | D126: 29 | E126: 1305 | F126: 348
B127: 89198 | C127: 10 | D127: 48 | E127: 480 | F127: 576
B128: 83910 | C128: 45 | D128: 65 | E128: 2925 | F128: 780 | G128: Расчет

Sheet Касса
C1: 400 | D1: 52 | E1: =C1*D1 -> 20800
C2: 5000 | D2: 2 | E2: 10000
C3: 1000 | D3: 0 | E3: 0
C4: 500 | D4: 23 | E4: 11500
C5: 200 | D5: 8 | E5: 1600
C6: 100 | D6: 2 | E6: 200
C7: 50 | D7: 0 | E7: 0
C8: 20 | D8: 0 | E8: 0
E9: =SUM(E1:E8) -> 44100
A11: H2 | B11: H3 | C11: H4 | H11: 52
A12: общая сумма | B12: сумма себест-ть | C12: доход | D12: расход | E12: нал | F12: остаток | G12: отправка
A13: =SUM('18.08.2014'!H2) -> 7800 | B13: =SUM('18.08.2014'!H3) -> 4795 | C13: =SUM('18.08.2014'!H4) -> 3005 | D13: =SUM('18.08.2014'!I2) -> 500 | E13: =E9 -> 44100 | F13: =C13-D13 -> 2505
A14: =A13/H11 -> 150 | B14: =B13/H11 -> 92.21153846 | C14: =C13/H11 -> 57.78846154 | D14: =D13/H11 -> 9.615384615 | E14: =E13/H11 -> 848.0769231 | F14: =F13/H11 -> 48.17307692 | G14: =1976+(70100/55)+713+942+14035+870+20900 -> 40710.54545
